[Event "*** Titled Tuesday Blitz"]
[Site "Chess.com"]
[Date "2021.03.02"]
[Round "2"]
[White "AlexTriapishko"]
[Black "KruHor"]
[Result "1-0"]
[WhiteElo "2812"]
[BlackElo "2528"]
[TimeControl "180+1"]
[EndTime "10:15:16 PST"]
[Termination "AlexTriapishko won by resignation"]

1. Nf3 {[%clk 0:03:00.9]} 1... d6 {[%clk 0:02:54.9]} 2. g3 {[%clk 0:03:01.8]}
2... e5 {[%clk 0:02:53.4]} 3. Bg2 {[%clk 0:03:02.3]} 3... Be7 {[%clk 0:02:52.3]}
4. O-O {[%clk 0:03:02.5]} 4... Nf6 {[%clk 0:02:50.9]} 5. c4 {[%clk 0:03:02.5]}
5... c6 {[%clk 0:02:49.3]} 6. Nc3 {[%clk 0:03:02.6]} 6... O-O {[%clk 0:02:48.1]}
7. e4 {[%clk 0:02:57.8]} 7... Be6 {[%clk 0:02:43.3]} 8. b3 {[%clk 0:02:53.8]}
8... b5 {[%clk 0:02:03.9]} 9. cxb5 {[%clk 0:02:48.7]} 9... cxb5 {[%clk
0:02:03.1]} 10. Nxb5 {[%clk 0:02:48.5]} 10... Na6 {[%clk 0:01:51.4]} 11. d4
{[%clk 0:02:41]} 11... Nxe4 {[%clk 0:01:47.1]} 12. dxe5 {[%clk 0:02:34.1]} 12...
dxe5 {[%clk 0:01:19.1]} 13. Nxe5 {[%clk 0:02:29.1]} 13... Nac5 {[%clk
0:01:01.6]} 14. Nc6 {[%clk 0:02:21.7]} 14... Qe8 {[%clk 0:01:00.3]} 15. Nxe7+
{[%clk 0:02:18.9]} 15... Qxe7 {[%clk 0:01:00]} 16. Ba3 {[%clk 0:02:19.2]} 16...
a6 {[%clk 0:00:40.9]} 17. Nd4 {[%clk 0:02:14]} 17... Nc3 {[%clk 0:00:19.2]} 18.
Qc2 {[%clk 0:02:01.6]} 1-0

[Event "*** Titled Tuesday Blitz"]
[Site "Chess.com"]
[Date "2021.03.02"]
[Round "2"]
[White "Frogo47"]
[Black "Gabix_94"]
[Result "0-1"]
[WhiteElo "2526"]
[BlackElo "2805"]
[TimeControl "180+1"]
[EndTime "10:15:16 PST"]
[Termination "Gabix_94 won by resignation"]

1. e4 {[%clk 0:03:00.9]} 1... e5 {[%clk 0:02:59.2]} 2. Nf3 {[%clk 0:03:00.3]}
2... Nc6 {[%clk 0:02:59.6]} 3. Bb5 {[%clk 0:03:00.9]} 3... a6 {[%clk 0:02:58.9]}
4. Ba4 {[%clk 0:03:01.1]} 4... b5 {[%clk 0:02:58.7]} 5. Bb3 {[%clk 0:03:00.8]}
5... Na5 {[%clk 0:02:59.3]} 6. O-O {[%clk 0:02:59.3]} 6... d6 {[%clk 0:02:58.5]}
7. d4 {[%clk 0:02:52.4]} 7... exd4 {[%clk 0:02:59.4]} 8. c3 {[%clk 0:02:52.6]}
8... Nxb3 {[%clk 0:02:59]} 9. axb3 {[%clk 0:02:51.5]} 9... d3 {[%clk 0:02:55.6]}
10. Qxd3 {[%clk 0:02:50.6]} 10... Be7 {[%clk 0:02:54.3]} 11. Rd1 {[%clk
0:02:46.9]} 11... Nf6 {[%clk 0:02:42.1]} 12. e5 {[%clk 0:02:41.7]} 12... dxe5
{[%clk 0:02:19.3]} 13. Qxd8+ {[%clk 0:02:30.4]} 13... Bxd8 {[%clk 0:02:20.2]}
14. Nxe5 {[%clk 0:02:30.7]} 14... Be6 {[%clk 0:02:19.2]} 15. c4 {[%clk 0:02:23]}
15... bxc4 {[%clk 0:02:11.1]} 16. bxc4 {[%clk 0:02:20.2]} 16... O-O {[%clk
0:02:11.3]} 17. Nc3 {[%clk 0:02:19.8]} 17... Be7 {[%clk 0:02:05.8]} 18. Nc6
{[%clk 0:02:04.7]} 18... Bd6 {[%clk 0:01:58.8]} 19. b3 {[%clk 0:02:04.5]} 19...
Rfe8 {[%clk 0:01:55.4]} 20. Be3 {[%clk 0:01:56.8]} 20... Ng4 {[%clk 0:01:53.5]}
21. h3 {[%clk 0:01:51.8]} 21... Nxe3 {[%clk 0:01:52.5]} 22. fxe3 {[%clk
0:01:52.7]} 22... Bd7 {[%clk 0:01:47]} 23. c5 {[%clk 0:01:32.9]} 23... Bxc5
{[%clk 0:01:16.8]} 24. Rxd7 {[%clk 0:01:32.5]} 24... Rxe3 {[%clk 0:01:17.4]} 25.
Na4 {[%clk 0:01:25.3]} 25... Re1+ {[%clk 0:01:10.9]} 26. Kh2 {[%clk 0:01:25]}
26... Bg1+ {[%clk 0:01:09.9]} 27. Kg3 {[%clk 0:01:22.3]} 27... Rxa1 {[%clk
0:01:10.8]} 0-1

[Event "*** Titled Tuesday Blitz"]
[Site "Chess.com"]
[Date "2021.03.02"]
[Round "2"]
[White "Pogosian_Manvel"]
[Black "campomania3"]
[Result "1-0"]
[WhiteElo "2413"]
[BlackElo "2156"]
[TimeControl "180+1"]
[EndTime "10:15:18 PST"]
[Termination "Pogosian_Manvel won by resignation"]

1. d4 {[%clk 0:03:00.9]} 1... d5 {[%clk 0:01:06.3]} 2. c4 {[%clk 0:03:00.5]}
2... c6 {[%clk 0:01:05.9]} 3. Nc3 {[%clk 0:03:00.2]} 3... e5 {[%clk 0:01:05]} 4.
cxd5 {[%clk 0:02:57.3]} 4... cxd5 {[%clk 0:01:04.8]} 5. e3 {[%clk 0:02:50.3]}
5... e4 {[%clk 0:01:04.7]} 6. Nge2 {[%clk 0:02:44.5]} 6... Nf6 {[%clk
0:01:04.9]} 7. Qb3 {[%clk 0:02:43.6]} 7... Nc6 {[%clk 0:01:04.3]} 8. Nf4 {[%clk
0:02:42.5]} 8... Bb4 {[%clk 0:01:03.6]} 9. Bd2 {[%clk 0:02:41.8]} 9... Bxc3
{[%clk 0:01:03.2]} 10. Bxc3 {[%clk 0:02:38.3]} 10... O-O {[%clk 0:01:02.5]} 11.
h4 {[%clk 0:02:38.8]} 11... b6 {[%clk 0:00:54.6]} 12. Be2 {[%clk 0:02:37.1]}
12... Bb7 {[%clk 0:00:54.7]} 13. Rc1 {[%clk 0:02:34.3]} 13... Rc8 {[%clk
0:00:54.7]} 14. O-O {[%clk 0:02:32.3]} 14... h6 {[%clk 0:00:53.7]} 15. Bd2
{[%clk 0:02:27.7]} 15... Qd7 {[%clk 0:00:51.7]} 16. h5 {[%clk 0:02:22.5]} 16...
Qf5 {[%clk 0:00:49.8]} 17. Qa3 {[%clk 0:02:17]} 17... Rc7 {[%clk 0:00:45.6]} 18.
Rc2 {[%clk 0:02:16.1]} 18... Rfc8 {[%clk 0:00:44.7]} 19. Rfc1 {[%clk 0:02:16.8]}
19... Nxd4 {[%clk 0:00:39]} 20. Rxc7 {[%clk 0:02:09.5]} 20... Rxc7 {[%clk
0:00:30.8]} 21. Rxc7 {[%clk 0:02:05.5]} 21... Nf3+ {[%clk 0:00:23.2]} 22. gxf3
{[%clk 0:02:00.2]} 22... exf3 {[%clk 0:00:22.5]} 23. Bxf3 {[%clk 0:01:57.1]} 1-0

[Event "*** Titled Tuesday Blitz"]
[Site "Chess.com"]
[Date "2021.03.02"]
[Round "2"]
[White "Ze-Pequeno"]
[Black "Skatchkov_V"]
[Result "0-1"]
[WhiteElo "2228"]
[BlackElo "2615"]
[TimeControl "180+1"]
[EndTime "10:15:19 PST"]
[Termination "Skatchkov_V won by resignation"]

1. e4 {[%clk 0:03:00.4]} 1... e5 {[%clk 0:02:57.9]} 2. Nf3 {[%clk 0:03:00]} 2...
d5 {[%clk 0:02:57.3]} 3. exd5 {[%clk 0:02:36]} 3... e4 {[%clk 0:02:58.2]} 4. Qe2
{[%clk 0:02:33.5]} 4... Nf6 {[%clk 0:02:58.4]} 5. d3 {[%clk 0:02:33]} 5... Qxd5
{[%clk 0:02:57.7]} 6. Nbd2 {[%clk 0:02:30.9]} 6... Nc6 {[%clk 0:02:57.5]} 7.
Nxe4 {[%clk 0:02:27.1]} 7... Be6 {[%clk 0:02:57.7]} 8. Nxf6+ {[%clk 0:02:25]}
8... gxf6 {[%clk 0:02:57.7]} 9. c3 {[%clk 0:02:25.4]} 9... O-O-O {[%clk
0:02:57.7]} 10. d4 {[%clk 0:02:24.8]} 10... Bd6 {[%clk 0:02:48.7]} 11. Be3
{[%clk 0:02:03.4]} 11... Rhe8 {[%clk 0:02:46.8]} 12. Qb5 {[%clk 0:01:50.3]}
12... Qe4 {[%clk 0:02:04]} 13. Bd3 {[%clk 0:01:37.8]} 13... Qg4 {[%clk
0:02:04.2]} 14. Rg1 {[%clk 0:01:36.8]} 14... Bd7 {[%clk 0:01:46.3]} 15. h3
{[%clk 0:01:30]} 15... Qf4 {[%clk 0:01:29.5]} 16. Kd2 {[%clk 0:01:08.6]} 16...
Nxd4 {[%clk 0:01:16.4]} 17. Bxf4 {[%clk 0:00:54.4]} 17... Bxf4+ {[%clk
0:01:17.3]} 0-1

[Event "*** Titled Tuesday Blitz"]
[Site "Chess.com"]
[Date "2021.03.02"]
[Round "2"]
[White "Jagerrmeisterr"]
[Black "MendozaDavid2000"]
[Result "1-0"]
[WhiteElo "2638"]
[BlackElo "2340"]
[TimeControl "180+1"]
[EndTime "10:15:24 PST"]
[Termination "Jagerrmeisterr won by resignation"]

1. e4 {[%clk 0:03:00.9]} 1... c5 {[%clk 0:02:59.6]} 2. Nc3 {[%clk 0:03:01.1]}
2... d6 {[%clk 0:02:59.4]} 3. g3 {[%clk 0:03:01.6]} 3... g6 {[%clk 0:02:58.1]}
4. Bg2 {[%clk 0:03:02.1]} 4... Bg7 {[%clk 0:02:58.7]} 5. d3 {[%clk 0:03:02.6]}
5... Nc6 {[%clk 0:02:58.6]} 6. Be3 {[%clk 0:03:03.1]} 6... e6 {[%clk 0:02:58.5]}
7. Qd2 {[%clk 0:03:03.2]} 7... Nd4 {[%clk 0:02:50.7]} 8. Nd1 {[%clk 0:03:03.1]}
8... e5 {[%clk 0:02:36.7]} 9. c3 {[%clk 0:03:02.5]} 9... Ne6 {[%clk 0:02:37.3]}
10. f4 {[%clk 0:03:02.6]} 10... f5 {[%clk 0:02:37.3]} 11. Nf3 {[%clk 0:03:02.2]}
11... Ne7 {[%clk 0:02:36.4]} 12. Nf2 {[%clk 0:02:58.9]} 12... O-O {[%clk
0:02:35.8]} 13. O-O-O {[%clk 0:02:59.1]} 13... Qa5 {[%clk 0:02:34]} 14. Kb1
{[%clk 0:02:58.3]} 14... exf4 {[%clk 0:02:30.2]} 15. gxf4 {[%clk 0:02:58.2]}
15... Rb8 {[%clk 0:02:10.4]} 16. d4 {[%clk 0:02:32.5]} 16... fxe4 {[%clk
0:01:47.5]} 17. Nxe4 {[%clk 0:02:32.5]} 17... Nf5 {[%clk 0:01:47.1]} 18. dxc5
{[%clk 0:02:31.2]} 18... Nxc5 {[%clk 0:01:44.3]} 19. Bxc5 {[%clk 0:02:30.1]}
19... dxc5 {[%clk 0:01:42.8]} 20. Qd5+ {[%clk 0:02:30.6]} 20... Kh8 {[%clk
0:01:40.4]} 21. Nfg5 {[%clk 0:02:31]} 21... h6 {[%clk 0:01:05.2]} 22. Nf7+
{[%clk 0:02:27.2]} 22... Kh7 {[%clk 0:01:05]} 23. h4 {[%clk 0:02:25.8]} 23...
Ne3 {[%clk 0:00:53.6]} 24. Neg5+ {[%clk 0:02:25.5]} 24... hxg5 {[%clk 0:00:24]}
25. hxg5+ {[%clk 0:02:23.9]} 25... Kg8 {[%clk 0:00:16.5]} 26. Nh6+ {[%clk
0:02:23.7]} 26... Kh7 {[%clk 0:00:12.5]} 27. Nf5+ {[%clk 0:02:20.4]} 27... Bh6
{[%clk 0:00:10.9]} 1-0

[Event "*** Titled Tuesday Blitz"]
[Site "Chess.com"]
[Date "2021.03.02"]
[Round "2"]
[White "Mr_Sinigami"]
[Black "yuki_chess123"]
[Result "1-0"]
[WhiteElo "2613"]
[BlackElo "2222"]
[TimeControl "180+1"]
[EndTime "10:15:28 PST"]
[Termination "Mr_Sinigami won by resignation"]

1. d4 {[%clk 0:03:00.9]} 1... g6 {[%clk 0:02:59.8]} 2. Nf3 {[%clk 0:03:00.8]}
2... Bg7 {[%clk 0:03:00.2]} 3. e4 {[%clk 0:02:57.3]} 3... c6 {[%clk 0:03:00.1]}
4. Nc3 {[%clk 0:02:56.2]} 4... d5 {[%clk 0:03:00.4]} 5. h3 {[%clk 0:02:52.4]}
5... f6 {[%clk 0:02:57]} 6. Bd3 {[%clk 0:02:44.6]} 6... Nh6 {[%clk 0:02:56.6]}
7. O-O {[%clk 0:02:39.7]} 7... O-O {[%clk 0:02:56.5]} 8. Qe2 {[%clk 0:02:37.9]}
8... Nf7 {[%clk 0:02:53.5]} 9. Re1 {[%clk 0:02:32.8]} 9... e6 {[%clk 0:02:52.8]}
10. Bf4 {[%clk 0:02:25.8]} 10... Nd7 {[%clk 0:02:51.5]} 11. Rad1 {[%clk
0:02:21.3]} 11... e5 {[%clk 0:02:45.4]} 12. Bg3 {[%clk 0:02:15.6]} 12... exd4
{[%clk 0:02:29]} 13. Nxd4 {[%clk 0:02:11.3]} 13... Nb6 {[%clk 0:02:08.4]} 14.
exd5 {[%clk 0:02:08.1]} 14... cxd5 {[%clk 0:01:59.4]} 15. Ne6 {[%clk 0:01:51.6]}
15... Bxe6 {[%clk 0:01:59]} 16. Qxe6 {[%clk 0:01:51.9]} 16... Re8 {[%clk
0:01:50.6]} 17. Qxe8+ {[%clk 0:01:51.1]} 17... Qxe8 {[%clk 0:01:50.7]} 18. Rxe8+
{[%clk 0:01:51.7]} 18... Rxe8 {[%clk 0:01:51.1]} 19. Bb5 {[%clk 0:01:47]} 19...
Rc8 {[%clk 0:01:46.6]} 20. Nxd5 {[%clk 0:01:26]} 20... Nxd5 {[%clk 0:01:46]} 21.
Rxd5 {[%clk 0:01:25.6]} 21... Rxc2 {[%clk 0:01:46.6]} 22. Rd7 {[%clk 0:01:25.2]}
22... a6 {[%clk 0:01:31.9]} 23. Ba4 {[%clk 0:01:23.5]} 23... Rc1+ {[%clk
0:01:12.3]} 24. Kh2 {[%clk 0:01:22.7]} 24... Kf8 {[%clk 0:01:09.5]} 25. Bb3
{[%clk 0:01:19.4]} 25... Nh6 {[%clk 0:01:01.1]} 26. Bd6+ {[%clk 0:01:17.8]} 1-0

[Event "*** Titled Tuesday Blitz"]
[Site "Chess.com"]
[Date "2021.03.02"]
[Round "2"]
[White "kleopl"]
[Black "slavenok"]
[Result "0-1"]
[WhiteElo "2485"]
[BlackElo "2708"]
[TimeControl "180+1"]
[EndTime "10:15:33 PST"]
[Termination "slavenok won by resignation"]

1. c4 {[%clk 0:03:00.9]} 1... c5 {[%clk 0:02:59.8]} 2. Nf3 {[%clk 0:03:00.3]}
2... Nc6 {[%clk 0:03:00.1]} 3. Nc3 {[%clk 0:03:00.1]} 3... e5 {[%clk 0:03:00.2]}
4. e3 {[%clk 0:02:58.4]} 4... Nf6 {[%clk 0:03:00.1]} 5. d4 {[%clk 0:02:57.7]}
5... exd4 {[%clk 0:03:01]} 6. exd4 {[%clk 0:02:58.2]} 6... cxd4 {[%clk
0:03:00.4]} 7. Nxd4 {[%clk 0:02:57.6]} 7... Be7 {[%clk 0:03:01.3]} 8. Be2 {[%clk
0:02:56.7]} 8... O-O {[%clk 0:03:00.6]} 9. O-O {[%clk 0:02:56.2]} 9... d5 {[%clk
0:02:59.9]} 10. Nxc6 {[%clk 0:02:54]} 10... bxc6 {[%clk 0:02:58.4]} 11. cxd5
{[%clk 0:02:54]} 11... cxd5 {[%clk 0:02:58.2]} 12. Be3 {[%clk 0:02:52.6]} 12...
Be6 {[%clk 0:02:58.3]} 13. Bf3 {[%clk 0:02:50]} 13... Qa5 {[%clk 0:02:52.4]} 14.
Bd4 {[%clk 0:02:42.5]} 14... Rab8 {[%clk 0:02:47.4]} 15. b3 {[%clk 0:02:37.7]}
15... Rfe8 {[%clk 0:02:45]} 16. Re1 {[%clk 0:02:34.1]} 16... h6 {[%clk
0:02:39.8]} 17. h3 {[%clk 0:02:31.1]} 17... Bb4 {[%clk 0:02:37.2]} 18. Re3
{[%clk 0:02:28.3]} 18... Ne4 {[%clk 0:02:30]} 19. Nxe4 {[%clk 0:01:56.1]} 19...
dxe4 {[%clk 0:02:27.4]} 20. Rxe4 {[%clk 0:01:49.5]} 20... Rbd8 {[%clk 0:02:21]}
21. Qe2 {[%clk 0:01:47.1]} 21... Bc3 {[%clk 0:02:10.6]} 22. Bxc3 {[%clk
0:01:41.9]} 22... Qxc3 {[%clk 0:02:11.5]} 23. Re1 {[%clk 0:01:38.3]} 23... Rd2
{[%clk 0:02:07.8]} 24. Qb5 {[%clk 0:01:23.9]} 24... Red8 {[%clk 0:02:02.7]} 25.
R4e2 {[%clk 0:01:02.9]} 25... Rxe2 {[%clk 0:01:59.2]} 26. Rxe2 {[%clk
0:01:03.8]} 26... Qc1+ {[%clk 0:01:57]} 27. Kh2 {[%clk 0:00:56.2]} 27... Qf4+
{[%clk 0:01:56.1]} 28. g3 {[%clk 0:00:52.4]} 28... Qxf3 {[%clk 0:01:54.4]} 0-1

[Event "*** Titled Tuesday Blitz"]
[Site "Chess.com"]
[Date "2021.03.02"]
[Round "2"]
[White "maxip32"]
[Black "Yaacovn"]
[Result "0-1"]
[WhiteElo "2518"]
[BlackElo "2786"]
[TimeControl "180+1"]
[EndTime "10:15:35 PST"]
[Termination "Yaacovn won on time"]

1. e4 {[%clk 0:03:00.9]} 1... c6 {[%clk 0:02:59.9]} 2. d4 {[%clk 0:03:00.5]}
2... d5 {[%clk 0:03:00.8]} 3. e5 {[%clk 0:03:00.2]} 3... Bf5 {[%clk 0:03:00.6]}
4. h4 {[%clk 0:02:59.3]} 4... Qb6 {[%clk 0:03:00.3]} 5. c3 {[%clk 0:02:51.6]}
5... h6 {[%clk 0:02:59.5]} 6. g4 {[%clk 0:02:50.2]} 6... Be4 {[%clk 0:02:58.9]}
7. f3 {[%clk 0:02:49.9]} 7... Bxb1 {[%clk 0:02:54.5]} 8. Rxb1 {[%clk 0:02:49.2]}
8... e6 {[%clk 0:02:55.1]} 9. Bd3 {[%clk 0:02:45.3]} 9... c5 {[%clk 0:02:55.2]}
10. Be3 {[%clk 0:02:42.2]} 10... Nc6 {[%clk 0:02:53.2]} 11. Ne2 {[%clk
0:02:41.3]} 11... cxd4 {[%clk 0:02:52.2]} 12. cxd4 {[%clk 0:02:31.9]} 12... Nxe5
{[%clk 0:02:49.9]} 13. dxe5 {[%clk 0:01:22.8]} 13... Qxe3 {[%clk 0:02:48.5]} 14.
Bb5+ {[%clk 0:01:06.4]} 14... Kd8 {[%clk 0:02:47]} 15. Rc1 {[%clk 0:01:06.1]}
15... Bc5 {[%clk 0:02:45.5]} 16. Qc2 {[%clk 0:00:54.8]} 16... Rc8 {[%clk
0:02:37.5]} 17. Kd1 {[%clk 0:00:55]} 17... Ne7 {[%clk 0:02:35.2]} 18. Qa4 {[%clk
0:00:48.6]} 18... a6 {[%clk 0:02:26.2]} 19. Bxa6 {[%clk 0:00:35.7]} 19... bxa6
{[%clk 0:02:25.6]} 20. Qxa6 {[%clk 0:00:36.6]} 20... Kd7 {[%clk 0:02:16]} 21.
Qb5+ {[%clk 0:00:34.3]} 21... Rc6 {[%clk 0:02:15.1]} 22. b4 {[%clk 0:00:31.5]}
22... Bb6 {[%clk 0:02:04.9]} 23. a4 {[%clk 0:00:16.6]} 23... Rb8 {[%clk
0:02:04.6]} 24. Rxc6 {[%clk 0:00:06.7]} 24... Nxc6 {[%clk 0:02:03.3]} 25. a5
{[%clk 0:00:01.8]} 25... Qb3+ {[%clk 0:02:02.7]} 0-1

[Event "*** Titled Tuesday Blitz"]
[Site "Chess.com"]
[Date "2021.03.02"]
[Round "2"]
[White "Fy_Rakotomaharo"]
[Black "Misha_Bilous"]
[Result "1-0"]
[WhiteElo "2748"]
[BlackElo "2501"]
[TimeControl "180+1"]
[EndTime "10:15:36 PST"]
[Termination "Fy_Rakotomaharo won by resignation"]

1. d4 {[%clk 0:03:00.9]} 1... Nf6 {[%clk 0:02:59.9]} 2. c4 {[%clk 0:03:01.1]}
2... g6 {[%clk 0:03:00.3]} 3. Nc3 {[%clk 0:03:01.5]} 3... Bg7 {[%clk 0:03:00.7]}
4. e4 {[%clk 0:03:02]} 4... d6 {[%clk 0:03:01.1]} 5. Nf3 {[%clk 0:03:02.5]} 5...
O-O {[%clk 0:03:01.4]} 6. Be2 {[%clk 0:03:03.1]} 6... e5 {[%clk 0:03:01.8]} 7.
O-O {[%clk 0:03:03.7]} 7... Nc6 {[%clk 0:03:02]} 8. d5 {[%clk 0:03:03.9]} 8...
Ne7 {[%clk 0:03:02.4]} 9. b4 {[%clk 0:03:02.5]} 9... Ne8 {[%clk 0:03:02.5]} 10.
c5 {[%clk 0:02:52.2]} 10... f5 {[%clk 0:03:02]} 11. Ng5 {[%clk 0:02:52.4]} 11...
h6 {[%clk 0:02:58]} 12. Ne6 {[%clk 0:02:52.2]} 12... Bxe6 {[%clk 0:02:58.3]} 13.
dxe6 {[%clk 0:02:53.1]} 13... Nf6 {[%clk 0:02:58.6]} 14. f3 {[%clk 0:02:42.8]}
14... d5 {[%clk 0:02:56.6]} 15. exd5 {[%clk 0:02:38.6]} 15... Nfxd5 {[%clk
0:02:56.8]} 16. Nxd5 {[%clk 0:02:38.3]} 16... Qxd5 {[%clk 0:02:56.8]} 17. Bb2
{[%clk 0:02:33.9]} 17... Rfd8 {[%clk 0:02:49.4]} 18. Qxd5 {[%clk 0:02:27.8]}
18... Rxd5 {[%clk 0:02:49.1]} 19. Bc4 {[%clk 0:02:27.6]} 19... Rd2 {[%clk
0:02:42.1]} 20. Bc3 {[%clk 0:02:09.3]} 20... Rc2 {[%clk 0:02:38.8]} 21. Rac1
{[%clk 0:02:09.6]} 21... Rxc1 {[%clk 0:02:36.8]} 22. Rxc1 {[%clk 0:02:10.5]}
22... Rd8 {[%clk 0:02:36.5]} 23. Re1 {[%clk 0:02:10.6]} 23... e4 {[%clk
0:02:24.5]} 24. Bxg7 {[%clk 0:02:08.3]} 24... Kxg7 {[%clk 0:02:25.4]} 25. fxe4
{[%clk 0:02:09]} 25... Rd4 {[%clk 0:02:23.9]} 26. Bb3 {[%clk 0:02:02.6]} 26...
fxe4 {[%clk 0:01:57.6]} 27. Rf1 {[%clk 0:01:57.7]} 27... Nf5 {[%clk 0:00:43.6]}
28. g4 {[%clk 0:01:57.4]} 28... Kf6 {[%clk 0:00:36.3]} 29. gxf5 {[%clk
0:01:55.1]} 29... gxf5 {[%clk 0:00:37.2]} 30. Rxf5+ {[%clk 0:01:50.9]} 30...
Kxf5 {[%clk 0:00:31.3]} 31. e7 {[%clk 0:01:51.3]} 1-0

[Event "*** Titled Tuesday Blitz"]
[Site "Chess.com"]
[Date "2021.03.02"]
[Round "2"]
[White "manipun1"]
[Black "Ekose"]
[Result "0-1"]
[WhiteElo "2230"]
[BlackElo "2537"]
[TimeControl "180+1"]
[EndTime "10:15:42 PST"]
[Termination "Ekose won by resignation"]

1. e4 {[%clk 0:02:55.2]} 1... e6 {[%clk 0:02:55.4]} 2. Nf3 {[%clk 0:02:54.4]}
2... d5 {[%clk 0:02:54.3]} 3. Nc3 {[%clk 0:02:55]} 3... dxe4 {[%clk 0:02:53.9]}
4. Nxe4 {[%clk 0:02:54.3]} 4... Bd7 {[%clk 0:02:54.4]} 5. d4 {[%clk 0:02:54.6]}
5... Bc6 {[%clk 0:02:53.9]} 6. Bd3 {[%clk 0:02:55.1]} 6... Nd7 {[%clk
0:02:53.7]} 7. Qe2 {[%clk 0:02:55.1]} 7... Ngf6 {[%clk 0:02:33.6]} 8. Bg5 {[%clk
0:02:53.3]} 8... Be7 {[%clk 0:02:33.1]} 9. Nxf6+ {[%clk 0:02:51.3]} 9... Bxf6
{[%clk 0:02:32.3]} 10. Bxf6 {[%clk 0:02:50.1]} 10... Qxf6 {[%clk 0:02:33.2]} 11.
O-O-O {[%clk 0:02:48.8]} 11... Bxf3 {[%clk 0:02:32.4]} 12. Qxf3 {[%clk
0:02:46.1]} 12... Qxf3 {[%clk 0:02:32]} 13. gxf3 {[%clk 0:02:45.3]} 13... O-O-O
{[%clk 0:02:31.4]} 14. c3 {[%clk 0:02:41.8]} 14... Nf6 {[%clk 0:02:29.1]} 15. h4
{[%clk 0:02:40.3]} 15... h5 {[%clk 0:02:21.8]} 16. Bc2 {[%clk 0:02:35.2]} 16...
g6 {[%clk 0:02:19.2]} 17. Rhe1 {[%clk 0:02:32.8]} 17... Rd5 {[%clk 0:02:14.1]}
18. Re5 {[%clk 0:02:26.2]} 18... Rhd8 {[%clk 0:02:11.6]} 19. Rde1 {[%clk
0:02:25]} 19... c6 {[%clk 0:02:08.9]} 20. Bb3 {[%clk 0:02:21.7]} 20... Rxe5
{[%clk 0:02:01.9]} 21. dxe5 {[%clk 0:02:09]} 21... Ng8 {[%clk 0:01:50.4]} 22.
Rd1 {[%clk 0:01:53.2]} 22... Ne7 {[%clk 0:01:41.6]} 23. Bc2 {[%clk 0:01:51.8]}
23... Rxd1+ {[%clk 0:01:36.9]} 24. Kxd1 {[%clk 0:01:51.2]} 24... Nd5 {[%clk
0:01:31.7]} 25. Kd2 {[%clk 0:01:47]} 25... Nf4 {[%clk 0:01:21.9]} 26. Be4 {[%clk
0:01:39]} 26... Ng2 {[%clk 0:01:16.4]} 27. Ke2 {[%clk 0:01:36.8]} 27... Nxh4
{[%clk 0:01:15]} 28. f4 {[%clk 0:01:36.7]} 28... Kc7 {[%clk 0:01:03.6]} 29. b4
{[%clk 0:01:34.4]} 29... b6 {[%clk 0:01:01.6]} 30. a4 {[%clk 0:01:34.1]} 30...
a5 {[%clk 0:00:52.7]} 31. bxa5 {[%clk 0:01:30.6]} 31... bxa5 {[%clk 0:00:51.6]}
32. c4 {[%clk 0:01:30.5]} 32... Kb6 {[%clk 0:00:51.1]} 33. Kd3 {[%clk
0:01:30.4]} 33... Kc5 {[%clk 0:00:50.3]} 0-1

[Event "*** Titled Tuesday Blitz"]
[Site "Chess.com"]
[Date "2021.03.02"]
[Round "2"]
[White "Grieve72"]
[Black "vugarrasulov"]
[Result "0-1"]
[WhiteElo "2522"]
[BlackElo "2790"]
[TimeControl "180+1"]
[EndTime "10:15:45 PST"]
[Termination "vugarrasulov won by resignation"]

1. e4 {[%clk 0:03:00.9]} 1... e5 {[%clk 0:02:59.4]} 2. Nf3 {[%clk 0:03:00.5]}
2... Nc6 {[%clk 0:02:59.9]} 3. Bc4 {[%clk 0:03:01.1]} 3... Nf6 {[%clk
0:02:59.1]} 4. d3 {[%clk 0:03:01]} 4... Be7 {[%clk 0:02:58.9]} 5. O-O {[%clk
0:03:00.8]} 5... O-O {[%clk 0:02:59.5]} 6. Re1 {[%clk 0:03:01.1]} 6... d6 {[%clk
0:02:58.1]} 7. a4 {[%clk 0:03:01.6]} 7... Na5 {[%clk 0:02:55.5]} 8. Ba2 {[%clk
0:03:01.2]} 8... c5 {[%clk 0:02:56.1]} 9. c3 {[%clk 0:03:01.3]} 9... Nc6 {[%clk
0:02:55.5]} 10. Na3 {[%clk 0:03:01.2]} 10... h6 {[%clk 0:02:52.5]} 11. Nc4
{[%clk 0:02:57.8]} 11... Be6 {[%clk 0:02:49.7]} 12. h3 {[%clk 0:02:54.3]} 12...
Re8 {[%clk 0:02:48.7]} 13. Bd2 {[%clk 0:02:40.8]} 13... Bf8 {[%clk 0:02:48]} 14.
b4 {[%clk 0:02:25]} 14... cxb4 {[%clk 0:02:38.8]} 15. cxb4 {[%clk 0:02:25.9]}
15... d5 {[%clk 0:02:38.8]} 16. exd5 {[%clk 0:01:33.6]} 16... Bxd5 {[%clk
0:02:39.7]} 17. b5 {[%clk 0:01:12.7]} 17... Nb4 {[%clk 0:02:39.1]} 18. Bxb4
{[%clk 0:01:00]} 18... Bxb4 {[%clk 0:02:40]} 19. Rxe5 {[%clk 0:01:00.4]} 19...
Rxe5 {[%clk 0:02:34]} 20. Ncxe5 {[%clk 0:00:44]} 20... Bc3 {[%clk 0:02:30.7]}
21. Rc1 {[%clk 0:00:34]} 21... Bxe5 {[%clk 0:02:29.5]} 22. Nxe5 {[%clk
0:00:20.3]} 22... Bxa2 {[%clk 0:02:28]} 23. Qd2 {[%clk 0:00:13.4]} 23... Be6
{[%clk 0:02:25.9]} 24. a5 {[%clk 0:00:13.6]} 24... Rc8 {[%clk 0:02:24.1]} 25.
Rxc8 {[%clk 0:00:10.4]} 25... Qxc8 {[%clk 0:02:25]} 26. Qb4 {[%clk 0:00:10.1]}
26... Nd5 {[%clk 0:02:22.2]} 27. Qd4 {[%clk 0:00:09.4]} 27... Qc1+ {[%clk
0:02:21.9]} 28. Kh2 {[%clk 0:00:09.9]} 28... Qf4+ {[%clk 0:02:22.5]} 29. Qxf4
{[%clk 0:00:10.4]} 29... Nxf4 {[%clk 0:02:23.4]} 30. Kg3 {[%clk 0:00:07.6]}
30... Ne2+ {[%clk 0:02:23.7]} 31. Kh2 {[%clk 0:00:02.4]} 31... Nc3 {[%clk
0:02:24.2]} 32. b6 {[%clk 0:00:02.5]} 32... axb6 {[%clk 0:02:24.5]} 33. axb6
{[%clk 0:00:03.4]} 33... Na4 {[%clk 0:02:24.6]} 34. Nc6 {[%clk 0:00:02.1]} 34...
Nxb6 {[%clk 0:02:22.5]} 35. Nd8 {[%clk 0:00:02.3]} 35... Bd5 {[%clk 0:02:22.1]}
0-1